{"text_format":"1","workbook":"xlsx","n_sheets":1,"sheets":["test"],"not_rendered":{"charts":0,"images":0,"macros":1,"external_links":0,"defined_names":0,"comments":0,"pivot_tables":0},"unopened":[],"bounds":{"document_bytes":16777216,"sheet_cells":100000,"rows_first":2000,"rows_last":500,"rows_between":2000,"halvings":0,"cell_chars":16384,"cell_head_chars":4096},"cells_cut":0,"cells_raw":0,"read":"whole","date_system":"1900"}

{"sheet":"test","index":0,"n_rows":66,"n_cols":33,"rows_kept":66,"cut":false,"hidden":false,"merged":[]}
["VILLE","Nom","2022-07-09",{"$f":"C1+7","v":"2022-07-16"},{"$f":"D1+7","v":"2022-07-23"},"2022-07-30","2022-08-06","2022-08-13","2022-08-20","2022-08-27","2022-09-03","2022-09-10","2022-09-17","2022-09-24","2022-10-01",null,{"$f":"C1","v":"2022-07-09"},{"$f":"D1","v":"2022-07-16"},"2022-07-23","2022-07-30","2022-08-06","2022-08-13","2022-08-20","2022-08-27","2022-09-03","2022-09-10","2022-09-17","2022-09-24","2022-10-01",null,null,null,"nbr perm par personne"]
["LYON","LUCAT",1,1,1,1,1,1,1,1,1,1,1,1,1,null,null,1,1,null,1,null,1,null,1,null,null,null,null,null,null,null,{"$f":"SUM(Q2:AC2)","v":5}]
["LYON","PAUL",0,1,1,1,1,1,1,0,1,1,1,1,1,null,null,1,1,null,null,1,1,null,null,null,1,null,null,null,null,null,{"$f":"SUM(Q3:AC3)","v":5}]
["LYON","DORANGE",1,1,1,1,1,1,1,0,1,1,1,1,1,null,null,null,1,null,1,1,1,null,null,null,1,null,null,null,null,null,5]
["LYON","MIC",0,0,0,0,0,0,0,0,1,1,1,1,1,null,null,null,null,null,null,null,null,null,1,null,null,null,null,null,null,null,1]
["LYON","ARTUS",0,0,0,0,0,0,0,0,1,1,1,1,1,null,null,null,null,null,null,null,null,null,null,null,null,null,null,null,null,null,0]
["LYON","LEFRANC",0,0,0,0,0,0,0,0,1,1,1,1,1,null,null,null,null,null,null,null,null,null,null,null,null,null,null,null,null,null,0]
["LYON","BAADACHE",0,0,0,0,0,0,0,0,1,1,1,1,1,null,null,null,null,null,null,null,null,null,null,null,null,null,null,null,null,null,0]
["LYON","DUPONT",0,0,0,0,0,0,0,1,1,1,1,1,1,null,null,null,null,null,null,null,null,null,1,null,1,null,null,null,null,null,2]
["PARIS","ZAHNON",0,0,0,0,0,0,0,1,1,1,1,1,1,null,null,null,null,null,null,null,null,null,null,1,null,null,1,null,null,null,{"$f":"SUM(Q10:AC10)","v":2}]
["PARIS","SKALI",0,0,0,0,0,0,0,1,1,1,1,1,1,null,null,null,null,null,null,null,null,null,null,null,null,null,null,null,null,null,0]
["PARIS","DELOUFI",1,1,1,1,0,0,0,1,1,1,1,1,1,null,null,null,null,null,null,null,null,null,null,1,null,1,null,null,null,null,2]
["PARIS","ARCH",1,1,1,1,0,0,0,1,1,1,1,1,1,null,null,null,null,null,null,null,null,null,null,null,null,null,null,null,null,null,0]
["PARIS","AMIMI",1,1,1,1,0,0,0,1,1,1,1,1,1,null,null,null,null,null,null,null,null,null,null,null,null,null,null,null,null,null,0]
["PARIS","BEAR",1,1,1,1,0,0,0,1,1,1,1,1,1,null,null,null,null,null,null,null,null,null,null,null,null,1,1,null,null,null,2]
["PARIS","FLOT",1,1,1,1,0,0,0,1,1,1,1,1,1,null,null,null,null,null,null,null,null,null,null,null,null,null,null,null,null,null,0]
["HAVRE","GENIF",0,0,0,0,0,0,0,1,1,1,1,1,1,null,null,null,null,null,null,null,null,null,null,null,null,null,null,null,null,null,0]
["HAVRE","DULOS",0,0,0,0,1,1,1,1,1,1,1,1,1,null,null,null,null,null,null,null,null,null,null,null,1,null,null,null,null,null,1]
["HAVRE","ZARY",1,1,1,1,1,1,1,1,1,1,1,1,1,null,null,null,null,null,1,null,null,null,null,null,null,null,null,null,null,null,1]
["HAVRE","LUCAT",0,0,0,0,1,1,1,1,1,1,1,1,1,null,null,null,null,null,null,null,1,1,null,null,null,null,null,null,null,null,2]
["HAVRE","PAUL",0,0,0,0,1,1,1,1,1,1,1,1,1,null,null,null,null,null,1,null,null,null,null,1,null,null,1,null,null,null,3]
["HAVRE","DORANGE",0,0,0,0,1,1,1,1,1,1,1,1,1,null,null,null,null,null,1,null,null,null,null,1,null,null,1,null,null,null,3]
["HAVRE","MIC",1,1,1,1,1,1,1,1,1,1,1,1,1,null,null,1,null,null,null,null,null,null,null,null,null,null,null,null,null,null,1]
["HAVRE","ARTUS",0,0,0,0,0,0,0,1,1,1,1,1,1,null,null,null,null,null,null,null,null,null,null,null,null,null,null,null,null,null,0]
["HAVRE","LEFRANC",0,0,0,0,1,1,1,1,1,1,1,1,1,null,null,null,null,null,null,null,1,null,null,null,1,null,null,null,null,null,2]
["HAVRE","BAADACHE",1,1,1,1,1,1,1,1,1,1,1,1,1,null,null,1,null,null,null,1,null,null,null,null,null,null,null,null,null,null,2]
[0,0]
["HAVRE","DUPONT",1,1,1,1,1,1,1,1,1,1,1,1,1,null,null,1,null,null,null,1,null,1,null,null,null,null,null,null,null,null,3]
["ST CYR","ZAHNON",1,1,1,1,1,1,1,1,1,1,1,1,1,null,null,null,null,null,1,null,null,null,null,null,null,null,null,null,null,null,1]
["ST CYR","Florian",1,1,1,1,1,1,1,1,1,1,1,1,1,null,1,null,null,null,null,null,1,null,1,null,null,1,null,null,null,null,4]
["ST CYR","BEAR",0,0,0,0,1,1,1,1,1,1,1,1,1,null,null,null,null,null,null,null,null,null,null,null,null,null,null,null,null,null,0]
["ST CYR","FLOT",1,1,1,1,1,1,1,1,1,1,1,1,1,null,1,null,null,null,null,null,null,null,1,null,null,null,null,null,null,null,2]
["ST CYR","MIC",1,1,1,1,1,1,1,1,1,1,1,1,1,null,null,null,null,1,null,null,1,null,null,null,null,null,null,null,null,null,2]
["ST CYR","ARTUS",0,0,0,0,1,1,1,1,1,1,1,1,1,null,null,null,null,null,null,null,null,null,null,null,null,null,null,null,null,null,0]
["ST CYR","LEFRANC",1,1,1,1,1,1,1,1,1,1,1,1,1,null,null,null,null,1,1,null,null,null,null,null,null,null,null,null,null,null,2]
[0,0]
["ST CYR","BAADACHE",1,1,1,1,1,1,1,1,1,1,1,1,1,null,1,null,null,null,null,null,null,null,null,null,null,1,null,null,null,null,2]
["LILLE","MIC",1,1,1,1,1,1,1,1,1,1,1,1,1,null,1,null,1,null,null,null,null,1,1,null,null,null,null,null,null,null,4]
["LILLE","ARTUS",1,1,1,1,1,1,1,1,1,1,1,1,1,null,null,1,1,1,null,null,null,1,null,null,null,null,null,null,null,null,4]
["LILLE","LEFRANC",1,1,1,1,1,1,1,1,1,1,1,1,1,null,null,null,null,null,null,null,null,null,1,null,null,null,null,null,null,null,1]
["LILLE","BAADACHE",1,1,1,1,1,1,1,1,1,1,1,1,1,null,1,null,null,null,null,null,null,null,null,null,null,null,null,null,null,null,1]
["LILLE","DUPONT",1,1,1,1,1,1,1,1,1,1,1,1,1,null,null,1,null,1,null,null,null,null,null,null,null,null,null,null,null,null,2]
[0,0]
[0,0]
["MONACO","GENIF",1,0,0,0,1,1,1,1,1,1,1,1,1,null,null,null,null,null,null,1,null,null,null,1,1,null,null,null,null,null,3]
["MONACO","DULOS",1,0,0,0,1,1,1,1,1,1,1,1,1,null,null,null,null,null,null,null,null,null,null,null,null,1,null,null,null,null,1]
["MONACO","HAMZA",1,0,0,0,1,1,1,1,1,1,1,1,1,null,1,null,null,null,null,1,null,null,null,null,null,null,null,null,null,null,2]
["MONACO","NAIL",0,0,0,0,1,1,1,1,1,1,1,1,1,null,null,null,null,null,null,null,null,1,null,1,null,null,1,null,null,null,3]
["MONACO","NAIK",0,0,0,0,1,1,1,1,1,1,1,1,1,null,null,null,null,null,null,1,null,1,null,null,null,1,1,null,null,null,4]
["MONACO","NAILS",1,1,1,1,1,1,1,1,1,1,1,1,1,null,null,null,1,1,null,null,null,null,null,null,null,1,null,null,null,null,3]
["MONACO","HAMZA",1,1,1,1,1,1,1,1,1,1,1,1,1,null,1,null,null,1,null,null,null,null,null,1]
["MONACO","NAIL",0,0,0,0,0,0,0,0,0,0,0,0,0]
["MONACO","NAIK",0,1,1,1,1,1,1,1,1,1,1,1,1,null,null,null,1,1,null,null,null,1,null,null,1,null,1]
[0,0]
[0,0]
[0,0]
[0,0]
[]
[]
[null,null,null,null,null,null,null,null,null,null,null,null,null,null,null,null,null,null,null,null,null,null,null,null,null,null,null,null,null,null,null,null,"moy par ville"]
[null,null,null,null,null,null,null,null,null,null,null,null,null,null,null,null,null,null,null,null,null,null,null,null,null,null,null,null,null,null,null,{"$f":"A2","v":"LYON"},{"$f":"SUM(AG2:AG9)/7","v":2.5714285714285716}]
[null,null,null,null,null,null,null,null,null,null,null,null,null,null,null,null,null,null,null,null,null,null,null,null,null,null,null,null,null,null,null,{"$f":"A10","v":"PARIS"},{"$f":"SUM(AG10:AG17)/8","v":0.75}]
[null,null,null,null,null,null,null,null,null,null,null,null,null,null,null,null,null,null,null,null,null,null,null,null,null,null,null,null,null,null,null,{"$f":"A20","v":"HAVRE"},{"$f":"SUM(AG17:AG28)/10","v":1.8}]
[null,null,null,null,null,null,null,null,null,null,null,null,null,null,null,null,null,null,null,null,null,null,null,null,null,null,null,null,null,null,null,{"$f":"A30","v":"ST CYR"},{"$f":"SUM(AG29:AG37)/8","v":1.625}]
[null,null,null,null,null,null,null,null,null,null,null,null,null,null,null,null,null,null,null,null,null,null,null,null,null,null,null,null,null,null,null,{"$f":"A40","v":"LILLE"},{"$f":"SUM(AG37:AG42)/8","v":1.75}]
[null,null,null,null,null,null,null,null,null,null,null,null,null,null,null,null,null,null,null,null,null,null,null,null,null,null,null,null,null,null,null,{"$f":"A50","v":"MONACO"},{"$f":"SUM(AG45:AG50)/6","v":2.6666666666666665}]